[Event "*** Biggest EVER Titled Tuesday"]
[Site "Chess.com"]
[Date "2018.04.17"]
[Round "8"]
[White "MateusViageiro"]
[Black "twitchTriniCupid"]
[Result "0-1"]
[WhiteElo "2211"]
[BlackElo "2177"]
[TimeControl "180+2"]
[EndTime "14:55:00 PDT"]
[Termination "twitchTriniCupid won on time"]

1. e4 {[%clk 0:03:00.2]} 1... c6 {[%clk 0:03:00.8]} 2. d4 {[%clk 0:02:59.2]}
2... d5 {[%clk 0:03:02.7]} 3. Nc3 {[%clk 0:03:00.5]} 3... dxe4 {[%clk
0:03:03.6]} 4. Nxe4 {[%clk 0:03:00.9]} 4... Bf5 {[%clk 0:03:05.2]} 5. Ng3 {[%clk
0:03:01.2]} 5... Bg6 {[%clk 0:03:06.5]} 6. Nf3 {[%clk 0:03:01.8]} 6... Nd7
{[%clk 0:03:07.3]} 7. Bd3 {[%clk 0:02:56.7]} 7... e6 {[%clk 0:03:02.3]} 8. O-O
{[%clk 0:02:56.8]} 8... Ngf6 {[%clk 0:03:02.2]} 9. Re1 {[%clk 0:02:56.3]} 9...
Be7 {[%clk 0:03:03]} 10. Ne5 {[%clk 0:02:49.1]} 10... Bxd3 {[%clk 0:02:45.1]}
11. Nxd3 {[%clk 0:02:22]} 11... c5 {[%clk 0:02:41.6]} 12. dxc5 {[%clk
0:02:20.5]} 12... Nxc5 {[%clk 0:02:40.7]} 13. Nxc5 {[%clk 0:01:49.6]} 13... Qxd1
{[%clk 0:02:41.1]} 14. Rxd1 {[%clk 0:01:51.5]} 14... Bxc5 {[%clk 0:02:42.5]} 15.
h3 {[%clk 0:01:51.6]} 15... Rc8 {[%clk 0:02:30.6]} 16. c3 {[%clk 0:01:50.6]}
16... h6 {[%clk 0:02:26.2]} 17. Kf1 {[%clk 0:01:48.7]} 17... Ke7 {[%clk
0:02:25.9]} 18. Ke2 {[%clk 0:01:44.8]} 18... Nd5 {[%clk 0:02:24.7]} 19. Ne4
{[%clk 0:01:44.4]} 19... Bb6 {[%clk 0:02:25.6]} 20. Be3 {[%clk 0:01:24.3]} 20...
Nxe3 {[%clk 0:02:15.4]} 21. fxe3 {[%clk 0:01:23]} 21... Rhd8 {[%clk 0:02:15.6]}
22. Nf2 {[%clk 0:01:15.1]} 22... Rc5 {[%clk 0:02:00.6]} 23. Nd3 {[%clk
0:01:12.1]} 23... Rcd5 {[%clk 0:02:00.9]} 24. e4 {[%clk 0:01:09.2]} 24... R5d7
{[%clk 0:02:00.4]} 25. Nb4 {[%clk 0:00:56.3]} 25... Bc5 {[%clk 0:01:44.3]} 26.
Rxd7+ {[%clk 0:00:53]} 26... Rxd7 {[%clk 0:01:46.2]} 27. Nd3 {[%clk 0:00:52.6]}
27... Bb6 {[%clk 0:01:46.2]} 28. Rf1 {[%clk 0:00:52.1]} 28... f6 {[%clk
0:01:46.2]} 29. g4 {[%clk 0:00:40.6]} 29... g6 {[%clk 0:01:13.3]} 30. Nf4 {[%clk
0:00:33.6]} 30... Kf7 {[%clk 0:01:13.7]} 31. e5 {[%clk 0:00:28.9]} 31... f5
{[%clk 0:01:14.2]} 32. gxf5 {[%clk 0:00:29.5]} 32... gxf5 {[%clk 0:01:16.1]} 33.
Rf3 {[%clk 0:00:25.6]} 33... Bd8 {[%clk 0:01:10.9]} 34. Nd3 {[%clk 0:00:16.9]}
34... b6 {[%clk 0:01:10.6]} 35. Rf4 {[%clk 0:00:18.1]} 35... Bc7 {[%clk
0:00:53.5]} 36. Ra4 {[%clk 0:00:13.5]} 36... Bb8 {[%clk 0:00:53.2]} 37. Rh4
{[%clk 0:00:14.1]} 37... Kg7 {[%clk 0:00:50.7]} 38. Nf4 {[%clk 0:00:11.5]} 38...
Re7 {[%clk 0:00:35.1]} 39. Nd3 {[%clk 0:00:07.8]} 39... Kg6 {[%clk 0:00:26]} 40.
Rd4 {[%clk 0:00:08.5]} 40... Kg5 {[%clk 0:00:25.6]} 41. Rd8 {[%clk 0:00:08.2]}
41... Bc7 {[%clk 0:00:26.2]} 42. Rh8 {[%clk 0:00:07.3]} 42... Rd7 {[%clk
0:00:15.8]} 43. h4+ {[%clk 0:00:08.3]} 43... Kh5 {[%clk 0:00:13.5]} 44. Nf4+
{[%clk 0:00:05.9]} 44... Kxh4 {[%clk 0:00:14.7]} 45. Rxh6+ {[%clk 0:00:06.8]}
45... Kg5 {[%clk 0:00:15.8]} 46. Rxe6 {[%clk 0:00:06.4]} 46... Kxf4 {[%clk
0:00:17.2]} 47. Re8 {[%clk 0:00:07.3]} 47... Bxe5 {[%clk 0:00:18.1]} 48. a4
{[%clk 0:00:07.5]} 48... Ke4 {[%clk 0:00:19.1]} 49. Rh8 {[%clk 0:00:04.9]} 49...
f4 {[%clk 0:00:20]} 50. Rh3 {[%clk 0:00:05.1]} 50... a5 {[%clk 0:00:20]} 51. Rh1
{[%clk 0:00:03.9]} 51... Rg7 {[%clk 0:00:20.3]} 52. Ke1 {[%clk 0:00:04.1]} 52...
Rg2 {[%clk 0:00:19.7]} 53. Kd1 {[%clk 0:00:05.2]} 53... Rxb2 {[%clk 0:00:19.2]}
54. Re1+ {[%clk 0:00:07.1]} 54... Kf5 {[%clk 0:00:20.2]} 55. Kc1 {[%clk
0:00:09]} 55... Rg2 {[%clk 0:00:20.2]} 56. Rd1 {[%clk 0:00:08.3]} 56... Ke4
{[%clk 0:00:19.1]} 57. c4 {[%clk 0:00:08]} 57... f3 {[%clk 0:00:19.7]} 58. Re1+
{[%clk 0:00:06.6]} 58... Kd4 {[%clk 0:00:20.7]} 59. c5 {[%clk 0:00:03.4]} 59...
bxc5 {[%clk 0:00:20.6]} 60. Rd1+ {[%clk 0:00:04.7]} 60... Ke4 {[%clk 0:00:21]}
61. Re1+ {[%clk 0:00:04.9]} 61... Re2 {[%clk 0:00:21.9]} 62. Rd1 {[%clk
0:00:05.3]} 62... Bd4 {[%clk 0:00:22]} 63. Kb1 {[%clk 0:00:05.6]} 63... f2
{[%clk 0:00:21.5]} 0-1

[Event "*** Biggest EVER Titled Tuesday"]
[Site "Chess.com"]
[Date "2018.04.17"]
[Round "8"]
[White "savinspm"]
[Black "SilverCat1992"]
[Result "0-1"]
[WhiteElo "2008"]
[BlackElo "2073"]
[TimeControl "180+2"]
[EndTime "14:55:40 PDT"]
[Termination "SilverCat1992 won by checkmate"]

1. e4 {[%clk 0:03:00.5]} 1... d6 {[%clk 0:02:59]} 2. d4 {[%clk 0:03:01.2]} 2...
g6 {[%clk 0:03:00.5]} 3. Bd3 {[%clk 0:03:00.4]} 3... Bg7 {[%clk 0:02:55.8]} 4.
c3 {[%clk 0:02:59.4]} 4... c5 {[%clk 0:02:51.4]} 5. d5 {[%clk 0:02:58.1]} 5...
Nf6 {[%clk 0:02:43.1]} 6. c4 {[%clk 0:02:58.3]} 6... O-O {[%clk 0:02:37.8]} 7.
Nc3 {[%clk 0:02:57]} 7... e6 {[%clk 0:02:36.5]} 8. Nge2 {[%clk 0:02:58]} 8...
exd5 {[%clk 0:02:33.4]} 9. exd5 {[%clk 0:02:58.8]} 9... Nbd7 {[%clk 0:02:22.6]}
10. b3 {[%clk 0:02:54.2]} 10... Re8 {[%clk 0:02:07.8]} 11. O-O {[%clk
0:02:54.3]} 11... Ng4 {[%clk 0:02:08.1]} 12. Bd2 {[%clk 0:02:47.8]} 12... Qh4
{[%clk 0:01:54.3]} 13. h3 {[%clk 0:02:48.8]} 13... Nge5 {[%clk 0:01:41.6]} 14.
Be4 {[%clk 0:02:47.3]} 14... Nf6 {[%clk 0:01:33.5]} 15. f3 {[%clk 0:02:40.9]}
15... Bd7 {[%clk 0:00:56.2]} 16. Qe1 {[%clk 0:02:30.5]} 16... Qxe1 {[%clk
0:00:42.6]} 17. Raxe1 {[%clk 0:02:30.5]} 17... Nxe4 {[%clk 0:00:44.1]} 18. fxe4
{[%clk 0:02:26.6]} 18... Nd3 {[%clk 0:00:40.4]} 19. Rd1 {[%clk 0:02:25.2]} 19...
Re7 {[%clk 0:00:21.1]} 20. Be3 {[%clk 0:02:25.3]} 20... Ne5 {[%clk 0:00:19.9]}
21. Bg5 {[%clk 0:02:17.2]} 21... Ree8 {[%clk 0:00:18.2]} 22. a4 {[%clk
0:02:12.6]} 22... h6 {[%clk 0:00:19.5]} 23. Bh4 {[%clk 0:02:12.2]} 23... g5
{[%clk 0:00:20.4]} 24. Bg3 {[%clk 0:02:12.1]} 24... Re7 {[%clk 0:00:21.3]} 25.
Nb5 {[%clk 0:02:03.9]} 25... Bxb5 {[%clk 0:00:20.5]} 26. axb5 {[%clk 0:02:05]}
26... Rae8 {[%clk 0:00:21.3]} 27. Bf2 {[%clk 0:01:57.9]} 27... Ng6 {[%clk
0:00:20.7]} 28. Ng3 {[%clk 0:01:58.3]} 28... Be5 {[%clk 0:00:18.5]} 29. Nf5
{[%clk 0:01:53.7]} 29... Rc7 {[%clk 0:00:19.2]} 30. Nxh6+ {[%clk 0:01:52.7]}
30... Kg7 {[%clk 0:00:19.6]} 31. Nf5+ {[%clk 0:01:53.7]} 31... Kh7 {[%clk
0:00:18.1]} 32. Rfe1 {[%clk 0:01:48.3]} 32... a6 {[%clk 0:00:12.3]} 33. bxa6
{[%clk 0:01:47.4]} 33... bxa6 {[%clk 0:00:14.2]} 34. Re2 {[%clk 0:01:47.9]}
34... Rb8 {[%clk 0:00:15.3]} 35. Rb1 {[%clk 0:01:40.8]} 35... Rcb7 {[%clk
0:00:16.4]} 36. Ra2 {[%clk 0:01:39.4]} 36... Rxb3 {[%clk 0:00:16.4]} 37. Rxb3
{[%clk 0:01:40.4]} 37... Rxb3 {[%clk 0:00:18.3]} 38. Be1 {[%clk 0:01:36.3]}
38... Rb1 {[%clk 0:00:16.2]} 39. Kf2 {[%clk 0:01:36.1]} 39... Nf4 {[%clk
0:00:15.1]} 40. Bd2 {[%clk 0:01:30.6]} 40... Nd3+ {[%clk 0:00:10.4]} 41. Ke3
{[%clk 0:01:30]} 41... Ne1 {[%clk 0:00:09.5]} 42. g4 {[%clk 0:01:22.3]} 42...
Bf4+ {[%clk 0:00:09.4]} 43. Ke2 {[%clk 0:01:22.2]} 43... Ng2 {[%clk 0:00:08.7]}
44. Bc3 {[%clk 0:01:11.6]} 44... Rh1 {[%clk 0:00:08]} 45. Kf3 {[%clk 0:01:01.4]}
45... Ne1+ {[%clk 0:00:03.9]} 46. Bxe1 {[%clk 0:01:00.6]} 46... Rxe1 {[%clk
0:00:05.8]} 47. Rxa6 {[%clk 0:01:00.9]} 47... Rh1 {[%clk 0:00:05.2]} 48. Nxd6
{[%clk 0:01:00.2]} 48... Rxh3+ {[%clk 0:00:06]} 49. Ke2 {[%clk 0:00:59.9]} 49...
Re3+ {[%clk 0:00:06.7]} 50. Kd1 {[%clk 0:01:01]} 50... Bxd6 {[%clk 0:00:07.5]}
51. Rxd6 {[%clk 0:01:01.5]} 51... Rxe4 {[%clk 0:00:09.4]} 52. Rf6 {[%clk
0:00:56.5]} 52... Kg7 {[%clk 0:00:09.5]} 53. Rf5 {[%clk 0:00:57.5]} 53... Rxg4
{[%clk 0:00:10]} 54. Ke2 {[%clk 0:00:57.1]} 54... Kg6 {[%clk 0:00:09.6]} 55. Re5
{[%clk 0:00:56.8]} 55... Rxc4 {[%clk 0:00:10.9]} 56. d6 {[%clk 0:00:55.5]} 56...
Rd4 {[%clk 0:00:12.2]} 57. Rxc5 {[%clk 0:00:56.5]} 57... Rxd6 {[%clk 0:00:13.2]}
58. Kf3 {[%clk 0:00:57.7]} 58... Rd4 {[%clk 0:00:14.2]} 59. Rc6+ {[%clk
0:00:57.1]} 59... f6 {[%clk 0:00:15.2]} 60. Rc5 {[%clk 0:00:58.1]} 60... Kh5
{[%clk 0:00:15.5]} 61. Rc6 {[%clk 0:00:58.9]} 61... Rf4+ {[%clk 0:00:16.2]} 62.
Kg3 {[%clk 0:00:59.1]} 62... f5 {[%clk 0:00:15.9]} 63. Rc8 {[%clk 0:00:58.8]}
63... Rg4+ {[%clk 0:00:16.3]} 64. Kh3 {[%clk 0:00:58.5]} 64... Rh4+ {[%clk
0:00:17.7]} 65. Kg3 {[%clk 0:00:59.8]} 65... f4+ {[%clk 0:00:18.2]} 66. Kg2
{[%clk 0:01:01]} 66... Kg4 {[%clk 0:00:18.9]} 67. Rc3 {[%clk 0:01:00.7]} 67...
Rh7 {[%clk 0:00:19.1]} 68. Rc2 {[%clk 0:01:00.8]} 68... Rd7 {[%clk 0:00:20]} 69.
Ra2 {[%clk 0:01:00.2]} 69... Rd3 {[%clk 0:00:20.8]} 70. Rb2 {[%clk 0:01:00.7]}
70... Rg3+ {[%clk 0:00:13.2]} 71. Kf2 {[%clk 0:01:00.7]} 71... Rh3 {[%clk
0:00:13.2]} 72. Kg2 {[%clk 0:01:01.7]} 72... f3+ {[%clk 0:00:10.9]} 73. Kg1
{[%clk 0:01:02.7]} 73... Kg3 {[%clk 0:00:11]} 74. Rb3 {[%clk 0:01:03.5]} 74...
g4 {[%clk 0:00:10.5]} 75. Ra3 {[%clk 0:01:04.2]} 75... Rh5 {[%clk 0:00:10.4]}
76. Rb3 {[%clk 0:01:03.7]} 76... Rd5 {[%clk 0:00:11.5]} 77. Rb1 {[%clk
0:01:04.6]} 77... Rd2 {[%clk 0:00:13]} 78. Rc1 {[%clk 0:01:04.9]} 78... Rh2
{[%clk 0:00:13.9]} 79. Rc3 {[%clk 0:01:03.7]} 79... Rg2+ {[%clk 0:00:12.1]} 80.
Kf1 {[%clk 0:01:00.6]} 80... Rh2 {[%clk 0:00:11.7]} 81. Kg1 {[%clk 0:01:01.6]}
81... Rg2+ {[%clk 0:00:12.2]} 82. Kf1 {[%clk 0:01:02.6]} 82... Rd2 {[%clk
0:00:14.1]} 83. Rc1 {[%clk 0:01:02.9]} 83... Kh2 {[%clk 0:00:13.1]} 84. Rc8
{[%clk 0:01:02.7]} 84... Rg2 {[%clk 0:00:08.8]} 85. Rc7 {[%clk 0:01:00.9]} 85...
Kg3 {[%clk 0:00:08.3]} 86. Rc3 {[%clk 0:01:01]} 86... Rh2 {[%clk 0:00:06.7]} 87.
Kg1 {[%clk 0:01:01.6]} 87... Rh5 {[%clk 0:00:07.9]} 88. Ra3 {[%clk 0:01:01.8]}
88... Re5 {[%clk 0:00:09.1]} 89. Ra1 {[%clk 0:01:01.3]} 89... Kf4 {[%clk
0:00:09.6]} 90. Kf2 {[%clk 0:01:00.5]} 90... g3+ {[%clk 0:00:10.5]} 91. Kf1
{[%clk 0:01:01.3]} 91... Re4 {[%clk 0:00:11.4]} 92. Ra3 {[%clk 0:01:01.4]} 92...
Kg4 {[%clk 0:00:12.4]} 93. Rb3 {[%clk 0:01:02.1]} 93... Rd4 {[%clk 0:00:09.7]}
94. Ra3 {[%clk 0:01:02]} 94... Rd1# {[%clk 0:00:09.2]} 0-1

[Event "*** Biggest EVER Titled Tuesday"]
[Site "Chess.com"]
[Date "2018.04.17"]
[Round "8"]
[White "StoreySniper"]
[Black "chegueps"]
[Result "0-1"]
[WhiteElo "2238"]
[BlackElo "2287"]
[TimeControl "180+2"]
[EndTime "14:56:14 PDT"]
[Termination "chegueps won by resignation"]

1. e4 {[%clk 0:03:01.9]} 1... c5 {[%clk 0:03:00]} 2. Nf3 {[%clk 0:03:00.8]} 2...
e6 {[%clk 0:02:59.4]} 3. c3 {[%clk 0:03:00]} 3... d5 {[%clk 0:02:51.6]} 4. exd5
{[%clk 0:03:00.3]} 4... Qxd5 {[%clk 0:02:53.1]} 5. d4 {[%clk 0:03:01.8]} 5...
Nf6 {[%clk 0:02:54.4]} 6. Be3 {[%clk 0:03:01.6]} 6... cxd4 {[%clk 0:02:54.8]} 7.
cxd4 {[%clk 0:03:01.5]} 7... Nc6 {[%clk 0:02:55.2]} 8. Nc3 {[%clk 0:03:02]} 8...
Bb4 {[%clk 0:02:56.4]} 9. Bd3 {[%clk 0:03:01.7]} 9... O-O {[%clk 0:02:56.5]} 10.
O-O {[%clk 0:03:02.3]} 10... Qd6 {[%clk 0:02:56.6]} 11. Bg5 {[%clk 0:02:53.8]}
11... Nd5 {[%clk 0:02:45.6]} 12. Ne4 {[%clk 0:02:46.8]} 12... Qc7 {[%clk
0:02:34]} 13. Bh4 {[%clk 0:02:35.4]} 13... a6 {[%clk 0:02:16.8]} 14. Bg3 {[%clk
0:02:34.4]} 14... Qe7 {[%clk 0:02:14.8]} 15. a3 {[%clk 0:02:32.3]} 15... Ba5
{[%clk 0:02:05.5]} 16. Bd6 {[%clk 0:02:32.8]} 16... Qe8 {[%clk 0:02:07]} 17.
Bxf8 {[%clk 0:02:11]} 17... Qxf8 {[%clk 0:02:05.3]} 18. b4 {[%clk 0:01:58.3]}
18... Bb6 {[%clk 0:02:04.7]} 19. Nc5 {[%clk 0:01:59]} 19... Bc7 {[%clk
0:02:01.9]} 20. Be4 {[%clk 0:01:56.3]} 20... Nce7 {[%clk 0:02:00.3]} 21. Rc1
{[%clk 0:01:47.4]} 21... b6 {[%clk 0:01:56.8]} 22. Nd3 {[%clk 0:01:44.1]} 22...
Bb7 {[%clk 0:01:46.7]} 23. Nde5 {[%clk 0:01:41.1]} 23... f6 {[%clk 0:01:31.7]}
24. Rxc7 {[%clk 0:01:19.6]} 24... Nxc7 {[%clk 0:01:22.7]} 25. Bxb7 {[%clk
0:01:19.4]} 25... Ra7 {[%clk 0:01:24.2]} 26. Nd7 {[%clk 0:01:10.4]} 26... Qd8
{[%clk 0:01:21.4]} 27. Nxf6+ {[%clk 0:01:10.2]} 27... gxf6 {[%clk 0:01:20.7]}
28. Be4 {[%clk 0:01:10.5]} 28... Ncd5 {[%clk 0:01:21.4]} 29. Re1 {[%clk
0:01:03.1]} 29... Qd6 {[%clk 0:01:15.8]} 30. g3 {[%clk 0:00:55.4]} 30... Rc7
{[%clk 0:01:13.2]} 31. Nh4 {[%clk 0:00:54.6]} 31... f5 {[%clk 0:01:00]} 32. Bd3
{[%clk 0:00:54]} 32... Nc6 {[%clk 0:00:57.9]} 33. Nf3 {[%clk 0:00:52.2]} 33...
Nc3 {[%clk 0:00:48.3]} 34. Qb3 {[%clk 0:00:45.2]} 34... Nd5 {[%clk 0:00:34.9]}
35. Bc4 {[%clk 0:00:41.7]} 35... Nce7 {[%clk 0:00:34.7]} 36. Ng5 {[%clk
0:00:34.7]} 36... b5 {[%clk 0:00:24]} 37. Bf1 {[%clk 0:00:20.4]} 37... Rc3
{[%clk 0:00:21.5]} 38. Qb2 {[%clk 0:00:17.3]} 38... Nc6 {[%clk 0:00:17.1]} 39.
Rxe6 {[%clk 0:00:16.3]} 39... Qd8 {[%clk 0:00:18.6]} 40. Bg2 {[%clk 0:00:12.6]}
40... Nxd4 {[%clk 0:00:16.1]} 41. Bxd5 {[%clk 0:00:12.7]} 41... Qxd5 {[%clk
0:00:14]} 42. Qxc3 {[%clk 0:00:11]} 42... Nxe6 {[%clk 0:00:12.1]} 43. Nxe6
{[%clk 0:00:10.3]} 43... Qxe6 {[%clk 0:00:10]} 44. Qe3 {[%clk 0:00:09.5]} 44...
Qd5 {[%clk 0:00:05.8]} 45. h3 {[%clk 0:00:10.2]} 45... Qd1+ {[%clk 0:00:06.3]}
46. Kg2 {[%clk 0:00:10.9]} 46... Qd5+ {[%clk 0:00:08.2]} 47. Qf3 {[%clk
0:00:12.1]} 47... Qf7 {[%clk 0:00:08.1]} 48. Qa8+ {[%clk 0:00:12.6]} 48... Kg7
{[%clk 0:00:09.2]} 49. Qxa6 {[%clk 0:00:13.8]} 49... Qd5+ {[%clk 0:00:10.8]} 50.
Kh2 {[%clk 0:00:14.9]} 50... Qf3 {[%clk 0:00:12.4]} 51. Qa7+ {[%clk 0:00:15.8]}
51... Kg6 {[%clk 0:00:13.2]} 52. Qe3 {[%clk 0:00:16.8]} 52... Qd5 {[%clk
0:00:12.1]} 53. h4 {[%clk 0:00:17.7]} 53... h6 {[%clk 0:00:12.2]} 54. Qc5 {[%clk
0:00:17.5]} 54... Qf3 {[%clk 0:00:12.6]} 55. Qd6+ {[%clk 0:00:18.2]} 55... Kh5
{[%clk 0:00:13]} 56. Qf4 {[%clk 0:00:17.8]} 56... Qd5 {[%clk 0:00:09]} 57. Qe3
{[%clk 0:00:16.1]} 57... Kg6 {[%clk 0:00:09.6]} 58. f3 {[%clk 0:00:16.5]} 58...
Qa2+ {[%clk 0:00:10.3]} 59. Kh3 {[%clk 0:00:17.1]} 59... Qd5 {[%clk 0:00:12.2]}
60. Qb6+ {[%clk 0:00:16.9]} 60... Kg7 {[%clk 0:00:12.5]} 61. Qe3 {[%clk
0:00:18]} 61... Kg6 {[%clk 0:00:13.6]} 62. Kg2 {[%clk 0:00:16.9]} 62... Kg7
{[%clk 0:00:12.9]} 63. Kh3 {[%clk 0:00:17.4]} 63... Kg6 {[%clk 0:00:14]} 64. Qc3
{[%clk 0:00:17.8]} 64... Kf7 {[%clk 0:00:12.2]} 65. Qc7+ {[%clk 0:00:16.9]}
65... Kg6 {[%clk 0:00:13]} 66. Qb6+ {[%clk 0:00:16.4]} 66... Kg7 {[%clk
0:00:13.7]} 67. Qf2 {[%clk 0:00:17.4]} 67... Qd3 {[%clk 0:00:12]} 68. Qb2+
{[%clk 0:00:18]} 68... Kg6 {[%clk 0:00:13]} 69. Kg2 {[%clk 0:00:19.3]} 69... Kf7
{[%clk 0:00:13.2]} 70. Qa2+ {[%clk 0:00:18.1]} 70... Kg6 {[%clk 0:00:14.2]} 71.
Qb2 {[%clk 0:00:17.1]} 71... Kf7 {[%clk 0:00:14.4]} 72. Kf2 {[%clk 0:00:18.3]}
72... Kg6 {[%clk 0:00:14.5]} 73. Qc1 {[%clk 0:00:15.9]} 73... Qd4+ {[%clk
0:00:14.1]} 74. Kg2 {[%clk 0:00:16.7]} 74... Qd3 {[%clk 0:00:14.6]} 75. Qc6+
{[%clk 0:00:15.2]} 75... Kg7 {[%clk 0:00:15.1]} 76. Qc7+ {[%clk 0:00:15.2]}
76... Kg6 {[%clk 0:00:16.3]} 77. Qb6+ {[%clk 0:00:16.3]} 77... Kg7 {[%clk
0:00:17.2]} 78. Qa7+ {[%clk 0:00:17.2]} 78... Kg6 {[%clk 0:00:18.3]} 79. a4
{[%clk 0:00:18.2]} 79... Qc2+ {[%clk 0:00:13]} 80. Kh3 {[%clk 0:00:18.7]} 80...
bxa4 {[%clk 0:00:13]} 81. Qa6+ {[%clk 0:00:19.5]} 81... Kg7 {[%clk 0:00:13.8]}
82. Qb7+ {[%clk 0:00:19.9]} 82... Kg6 {[%clk 0:00:14.8]} 83. Qb6+ {[%clk
0:00:21]} 83... Kg7 {[%clk 0:00:15.8]} 84. Qd4+ {[%clk 0:00:21.6]} 84... Kg6
{[%clk 0:00:16.5]} 85. b5 {[%clk 0:00:20.5]} 85... Qe2 {[%clk 0:00:14.1]} 86.
Qd6+ {[%clk 0:00:20.6]} 86... Kg7 {[%clk 0:00:15.2]} 87. Qc7+ {[%clk 0:00:20.9]}
87... Kg6 {[%clk 0:00:16.3]} 88. Qc6+ {[%clk 0:00:21.4]} 88... Kg7 {[%clk
0:00:17.5]} 89. Qc3+ {[%clk 0:00:20.4]} 89... Kg6 {[%clk 0:00:16.5]} 90. Qc6+
{[%clk 0:00:16.2]} 90... Kg7 {[%clk 0:00:17.6]} 91. Qd7+ {[%clk 0:00:17.2]}
91... Kg6 {[%clk 0:00:18.5]} 92. Qe6+ {[%clk 0:00:18.1]} 92... Qxe6 {[%clk
0:00:19.1]} 0-1

[Event "*** Biggest EVER Titled Tuesday"]
[Site "Chess.com"]
[Date "2018.04.17"]
[Round "8"]
[White "djamir"]
[Black "biostatistician"]
[Result "1-0"]
[WhiteElo "2630"]
[BlackElo "2439"]
[TimeControl "180+2"]
[EndTime "14:56:30 PDT"]
[Termination "djamir won on time"]

1. d4 {[%clk 0:03:01.9]} 1... Nf6 {[%clk 0:03:00.3]} 2. Nf3 {[%clk 0:03:02.2]}
2... g6 {[%clk 0:03:01.5]} 3. Bf4 {[%clk 0:03:02.2]} 3... Bg7 {[%clk 0:03:01.7]}
4. h3 {[%clk 0:03:03.5]} 4... c5 {[%clk 0:03:02.2]} 5. e3 {[%clk 0:03:04.5]}
5... b6 {[%clk 0:03:02.1]} 6. Be2 {[%clk 0:03:04.9]} 6... Bb7 {[%clk 0:03:03.2]}
7. O-O {[%clk 0:03:06]} 7... O-O {[%clk 0:03:04.2]} 8. Nbd2 {[%clk 0:03:03.8]}
8... Nc6 {[%clk 0:03:03.4]} 9. c3 {[%clk 0:03:03.3]} 9... d6 {[%clk 0:03:02.8]}
10. Re1 {[%clk 0:02:59.4]} 10... Rc8 {[%clk 0:03:01.9]} 11. a4 {[%clk
0:02:56.6]} 11... Rc7 {[%clk 0:03:01.4]} 12. a5 {[%clk 0:02:34.4]} 12... Qc8
{[%clk 0:02:12.8]} 13. axb6 {[%clk 0:02:27.5]} 13... axb6 {[%clk 0:02:12.7]} 14.
Bb5 {[%clk 0:02:18.8]} 14... Ba8 {[%clk 0:01:55.2]} 15. Nc4 {[%clk 0:02:09.7]}
15... Nd7 {[%clk 0:01:50.4]} 16. d5 {[%clk 0:02:05.9]} 16... Na7 {[%clk
0:01:20.3]} 17. Bxd7 {[%clk 0:02:05.3]} 17... Qxd7 {[%clk 0:01:22.2]} 18. Nxb6
{[%clk 0:02:06.6]} 18... Qb5 {[%clk 0:01:23.3]} 19. Nxa8 {[%clk 0:02:00.7]}
19... Rxa8 {[%clk 0:01:25.2]} 20. Qe2 {[%clk 0:01:34.7]} 20... Rb8 {[%clk
0:01:22.5]} 21. Qxb5 {[%clk 0:01:25.1]} 21... Rxb5 {[%clk 0:01:24.4]} 22. Ra2
{[%clk 0:01:23.5]} 22... h6 {[%clk 0:01:11.5]} 23. e4 {[%clk 0:01:23]} 23... g5
{[%clk 0:01:02]} 24. Be3 {[%clk 0:01:23.9]} 24... Nc8 {[%clk 0:00:57.7]} 25. Nd2
{[%clk 0:01:11.4]} 25... Nb6 {[%clk 0:00:46.1]} 26. Rc1 {[%clk 0:01:09.5]} 26...
Rb7 {[%clk 0:00:42.3]} 27. b3 {[%clk 0:01:07.6]} 27... Kh7 {[%clk 0:00:37.5]}
28. Kf1 {[%clk 0:01:01.1]} 28... Kg6 {[%clk 0:00:38.4]} 29. Ke2 {[%clk
0:01:02.2]} 29... e6 {[%clk 0:00:39.6]} 30. c4 {[%clk 0:00:52.3]} 30... Rb4
{[%clk 0:00:39.3]} 31. dxe6 {[%clk 0:00:51.3]} 31... fxe6 {[%clk 0:00:39.7]} 32.
Ra6 {[%clk 0:00:44.8]} 32... Be5 {[%clk 0:00:32.5]} 33. Rc2 {[%clk 0:00:45.1]}
33... Nd7 {[%clk 0:00:32.4]} 34. g3 {[%clk 0:00:45.6]} 34... R4b6 {[%clk
0:00:31.2]} 35. Ra4 {[%clk 0:00:37.6]} 35... Nb8 {[%clk 0:00:29.5]} 36. f4
{[%clk 0:00:37.6]} 36... Bf6 {[%clk 0:00:29.2]} 37. Ra8 {[%clk 0:00:35.8]} 37...
Nc6 {[%clk 0:00:27.7]} 38. Rca2 {[%clk 0:00:36.8]} 38... Bd4 {[%clk 0:00:25.5]}
39. R2a6 {[%clk 0:00:35.8]} 39... Bxe3 {[%clk 0:00:25.2]} 40. Kxe3 {[%clk
0:00:37.7]} 40... Nd4 {[%clk 0:00:26.6]} 41. Rxb6 {[%clk 0:00:38.6]} 41... Rxb6
{[%clk 0:00:28.4]} 42. Rd8 {[%clk 0:00:39]} 42... Nxb3 {[%clk 0:00:27.4]} 43.
Nf3 {[%clk 0:00:28.9]} 43... Na5 {[%clk 0:00:20.4]} 44. Nd2 {[%clk 0:00:26.4]}
44... gxf4+ {[%clk 0:00:17.1]} 45. gxf4 {[%clk 0:00:27.4]} 45... Kf6 {[%clk
0:00:18.2]} 46. Rxd6 {[%clk 0:00:23]} 46... Rxd6 {[%clk 0:00:17]} 47. e5+ {[%clk
0:00:24.4]} 47... Ke7 {[%clk 0:00:18.9]} 48. exd6+ {[%clk 0:00:26.3]} 48... Kxd6
{[%clk 0:00:20.4]} 49. Ne4+ {[%clk 0:00:25.7]} 49... Kc6 {[%clk 0:00:20.4]} 50.
Kd3 {[%clk 0:00:27.2]} 50... Nb3 {[%clk 0:00:19.3]} 51. Nf6 {[%clk 0:00:27.7]}
51... Nd4 {[%clk 0:00:18.4]} 52. Ng4 {[%clk 0:00:28.3]} 52... Nf5 {[%clk
0:00:19]} 53. Ke4 {[%clk 0:00:27.9]} 53... Kd6 {[%clk 0:00:20]} 54. Ne5 {[%clk
0:00:25.1]} 54... Ng3+ {[%clk 0:00:19.5]} 55. Kf3 {[%clk 0:00:25.6]} 55... Nf5
{[%clk 0:00:21.4]} 56. Kg4 {[%clk 0:00:25.2]} 56... Ke7 {[%clk 0:00:21.1]} 57.
Kh5 {[%clk 0:00:25.5]} 57... Kf6 {[%clk 0:00:17.1]} 58. Nd7+ {[%clk 0:00:26.4]}
58... Kg7 {[%clk 0:00:18.3]} 59. Nxc5 {[%clk 0:00:27]} 59... Ne3 {[%clk
0:00:19.6]} 60. Nxe6+ {[%clk 0:00:25]} 60... Kf6 {[%clk 0:00:20.8]} 61. Nd4
{[%clk 0:00:25.5]} 61... Nxc4 {[%clk 0:00:22.7]} 62. Kxh6 {[%clk 0:00:26.1]}
62... Ne3 {[%clk 0:00:22.1]} 63. Kh5 {[%clk 0:00:26.2]} 63... Ng2 {[%clk
0:00:22.9]} 64. Kg4 {[%clk 0:00:26.9]} 64... Ne3+ {[%clk 0:00:24]} 65. Kf3
{[%clk 0:00:27.6]} 65... Nd5 {[%clk 0:00:25]} 66. h4 {[%clk 0:00:28.5]} 66...
Kg6 {[%clk 0:00:24.3]} 67. Kg3 {[%clk 0:00:25.3]} 67... Kh5 {[%clk 0:00:24.4]}
68. f5 {[%clk 0:00:21.9]} 68... Ne3 {[%clk 0:00:20.4]} 69. Kf4 {[%clk 0:00:18]}
69... Ng2+ {[%clk 0:00:21.2]} 70. Ke5 {[%clk 0:00:15.6]} 70... Nxh4 {[%clk
0:00:23.1]} 71. f6 {[%clk 0:00:17]} 71... Ng6+ {[%clk 0:00:21.7]} 72. Kf5 {[%clk
0:00:15.7]} 72... Nh4+ {[%clk 0:00:21.7]} 73. Ke6 {[%clk 0:00:16.1]} 73... Ng6
{[%clk 0:00:22.7]} 74. f7 {[%clk 0:00:13.5]} 74... Kh6 {[%clk 0:00:11.6]} 75.
Kf6 {[%clk 0:00:14]} 75... Kh7 {[%clk 0:00:11.7]} 76. Ne6 {[%clk 0:00:14.4]}
76... Kh6 {[%clk 0:00:11.3]} 77. Nf4 {[%clk 0:00:12.9]} 77... Nf8 {[%clk
0:00:11.5]} 78. Ne6 {[%clk 0:00:14]} 78... Ng6 {[%clk 0:00:12]} 79. Kf5 {[%clk
0:00:05]} 79... Kh7 {[%clk 0:00:09.5]} 80. Kg5 {[%clk 0:00:06.1]} 80... Kh8
{[%clk 0:00:05]} 81. Kf6 {[%clk 0:00:04.6]} 81... Kh7 {[%clk 0:00:05.6]} 82. Nd8
{[%clk 0:00:05]} 82... Kh6 {[%clk 0:00:04.8]} 83. Ne6 {[%clk 0:00:06.4]} 83...
Kh7 {[%clk 0:00:05.8]} 84. Nf4 {[%clk 0:00:07.5]} 84... Nf8 {[%clk 0:00:06.1]}
85. Ke7 {[%clk 0:00:08.9]} 1-0